fUSD/lending_fUSD_20241027
["ID","MTS","AMOUNT","RATE_DAILY","PERIOD"]
[340887456,1730020244393,-500.0,0.00044064,5]
[340887457,1730020244402,-500.0,0.00044064,5]
[340887458,1730020244411,-500.0,0.00044064,5]
[340887459,1730020244421,-500.0,0.00044064,5]
[340887460,1730020244431,-500.0,0.00044064,5]
[340887461,1730020244440,-500.0,0.00044064,5]
[340887462,1730020244448,-167.44,0.00044064,5]
[340887463,1730020244457,-500.0,0.00044064,5]
[340887464,1730020244466,-500.0,0.00044064,5]
[340887465,1730020244475,-500.0,0.00044064,5]
[340887466,1730020244484,-495.85036781,0.00044064,5]
[340887467,1730020244493,-500.0,0.00044064,2]
[340887468,1730020244503,-16591.8345453,0.00044065,2]
[340887469,1730020244511,-82158.60469082,0.00044065,2]
[340887470,1730020244520,-151.902828,0.00044065,14]
[340887471,1730020244529,-151.0,0.00044065,14]
[340887472,1730020244538,-151.0,0.00044065,14]
[340887473,1730020244548,-151.0,0.00044065,14]
[340887474,1730020244560,-151.0,0.00044065,14]
[340887475,1730020244570,-151.0,0.00044065,14]
[340887476,1730020244579,-151.0,0.00044065,14]
[340887477,1730020244588,-151.0,0.00044065,14]
[340887478,1730020244597,-151.0,0.00044065,14]
[340887479,1730020244607,-239.37085,0.00044065,14]
[340887480,1730020244616,-154.555854,0.00044065,14]
[340887481,1730020244625,-151.0,0.00044065,14]
[340887482,1730020244635,-277.264325,0.00044065,14]
[340887483,1730020244643,-151.0,0.00044065,14]
[340887484,1730020244649,-285.278391,0.00044065,14]
[340887485,1730020244656,-151.0,0.00044065,14]
[340887486,1730020244662,-168.27072,0.00044065,14]
[340887487,1730020244669,-151.0,0.00044065,14]
[340887488,1730020244676,-197.212874,0.00044065,14]
[340887489,1730020244684,-151.0,0.00044065,14]
[340887490,1730020244691,-151.0,0.00044065,14]
[340887491,1730020244699,-151.0,0.00044065,14]
[340887492,1730020244706,-151.0,0.00044065,14]
[340887493,1730020244712,-151.0,0.00044065,14]
[340887494,1730020244719,-151.0,0.00044065,14]
[340887495,1730020244727,-151.0,0.00044065,14]
[340887496,1730020244733,-151.0,0.00044065,14]
[340887497,1730020244740,-151.0,0.00044065,14]
[340887498,1730020244747,-151.0,0.00044065,14]
[340887499,1730020244754,-151.0,0.00044065,14]
[340887500,1730020244760,-151.0,0.00044065,14]
[340887501,1730020244768,-151.0,0.00044065,14]
[340887502,1730020244775,-151.0,0.00044065,14]
[340887503,1730020244783,-151.0,0.00044065,14]
[340887504,1730020244790,-151.0,0.00044065,14]
[340887505,1730020244797,-151.0,0.00044065,14]
[340887506,1730020244810,-151.0,0.00044065,14]
[340887507,1730020244819,-203.355212,0.00044065,14]
[340887508,1730020244829,-283.059793,0.00044065,14]
[340887509,1730020244839,-151.0,0.00044065,14]
[340887510,1730020244848,-151.0,0.00044065,14]
[340887511,1730020244857,-151.0,0.00044065,14]
[340887512,1730020244867,-151.0,0.00044065,14]
[340887513,1730020244876,-241.430863,0.00044065,14]
[340887514,1730020244885,-151.0,0.00044065,14]
[340887515,1730020244895,-151.0,0.00044065,14]
[340887516,1730020244904,-151.0,0.00044065,14]
[340887517,1730020244913,-151.0,0.00044065,7]
[340887518,1730020244923,-151.0,0.00044065,7]
[340887519,1730020244932,-151.0,0.00044065,7]
[340887520,1730020244942,-151.0,0.00044065,14]
[340887521,1730020244951,-151.0,0.00044065,14]
[340887522,1730020244961,-151.0,0.00044065,14]
[340887523,1730020244970,-234.595825,0.00044065,14]
[340887524,1730020244980,-234.595825,0.00044065,14]
[340887525,1730020244989,-234.595825,0.00044065,14]
[340887526,1730020244999,-234.595825,0.00044065,14]
[340887527,1730020245008,-234.595825,0.00044065,14]
[340887528,1730020245018,-234.595825,0.00044065,14]
[340887529,1730020245028,-151.0,0.00044065,14]
[340887530,1730020245037,-151.0,0.00044065,14]
[340887531,1730020245047,-151.0,0.00044065,14]
[340887532,1730020245057,-151.0,0.00044065,14]
[340887533,1730020245066,-151.0,0.00044065,14]
[340887534,1730020245076,-161.88256,0.00044065,14]
[340887535,1730020245085,-151.0,0.00044065,14]
[340887536,1730020245095,-151.0,0.00044065,14]
[340887537,1730020245105,-151.0,0.00044065,14]
[340887538,1730020245116,-151.0,0.00044065,14]
[340887539,1730020245125,-151.0,0.00044065,14]
[340887540,1730020245135,-151.0,0.00044065,14]
[340887541,1730020245145,-151.0,0.00044065,14]
[340887542,1730020245159,-151.0,0.00044065,14]
[340887543,1730020245169,-151.0,0.00044065,14]
[340887544,1730020245179,-151.0,0.00044065,14]
[340887545,1730020245189,-151.0,0.00044065,14]
[340887546,1730020245199,-151.0,0.00044065,14]
[340887547,1730020245208,-151.0,0.00044065,14]
[340887548,1730020245218,-151.0,0.00044065,14]
[340887549,1730020245228,-151.0,0.00044065,14]
[340887550,1730020245238,-202.43377,0.00044065,14]
[340887551,1730020245248,-151.0,0.00044065,14]
[340887552,1730020245258,-170.597629,0.00044065,14]
[340887553,1730020245267,-151.0,0.00044065,14]
[340887554,1730020245277,-151.0,0.00044065,14]
[340887555,1730020245287,-151.0,0.00044065,14]
[340887556,1730020245297,-151.0,0.00044065,14]
[340887557,1730020245307,-151.0,0.00044065,14]
[340887558,1730020245318,-188.981297,0.00044065,14]
[340887559,1730020245327,-151.0,0.00044065,14]
[340887560,1730020245337,-242.668049,0.00044065,14]
[340887561,1730020245347,-151.0,0.00044065,14]
[340887562,1730020245357,-151.0,0.00044065,14]
[340887563,1730020245366,-151.0,0.00044065,14]
[340887564,1730020245376,-151.0,0.00044065,14]
[340887565,1730020245386,-160.342661,0.00044065,14]
[340887566,1730020245396,-151.0,0.00044065,14]
[340887567,1730020245406,-1525.48479,0.00044065,14]
[340887568,1730020245415,-1525.48479,0.00044065,14]
[340887569,1730020245425,-1525.48479,0.00044065,14]
[340887570,1730020245435,-1525.48479,0.00044065,14]
[340887571,1730020245445,-1525.48479,0.00044065,14]
[340887572,1730020245454,-1525.48479,0.00044065,14]
[340887573,1730020245464,-151.0,0.00044065,14]
[340887574,1730020245473,-151.0,0.00044065,14]
[340887575,1730020245483,-151.0,0.00044065,14]
[340887576,1730020245492,-151.0,0.00044065,14]
[340887577,1730020245501,-151.0,0.00044065,14]
[340887578,1730020245511,-151.0,0.00044065,14]
[340887579,1730020245520,-151.0,0.00044065,14]
[340887580,1730020245530,-151.0,0.00044065,7]
[340887581,1730020245540,-151.0,0.00044065,7]
[340887582,1730020245553,-151.0,0.00044065,7]
[340887583,1730020245563,-9050.73751067,0.00044065,20]
[340887589,1730020246585,-1000.0,0.0004405,2]
[340887590,1730020246595,-153.0,0.00044065,7]
[340887592,1730020246604,-327.97816042,0.00044065,20]
[340887594,1730020246615,-8455.01535632,0.00044065,20]
[340887600,1730020700803,155.93,0.00015342,2]
[340887602,1730021108256,7680.78,0.00015,2]
[340887603,1730021108304,1192600.0,0.00015,2]
[340887604,1730021108335,10020308.45943111,0.00015,2]
[340887605,1730021109363,-2898.64499212,0.00015,2]
[340887606,1730021287028,87432.7476294,0.0001499,3]
[340887614,1730021395373,5421.25763896,0.000149,7]
[340887635,1730021432331,-893.6602403,0.0001499,3]
[340887637,1730021432343,-724.07073579,0.0001499,3]
[340887640,1730021432354,-535.00166787,0.0001499,3]
[340887642,1730021432365,-999.915646,0.0001499,3]
[340887644,1730021432376,-3388.7376355,0.0001499,3]
[340887646,1730021432387,-1096.40924013,0.0001499,3]
[340887654,1730021432502,-1017.03397903,0.0001499,3]
[340887753,1730021440629,-769.88576455,0.0001499,3]
[340887754,1730021444382,-113097.61584334,0.0001499,3]
[340887760,1730021446390,-752.67821873,0.0001499,3]
[340887761,1730021446449,-8455.01535632,0.0001499,3]
[340887762,1730021765068,-461.45411461,0.000149,2]
[340887763,1730021768525,226.41735,0.00014914,2]
[340887764,1730021800206,2491.63336689,0.000149,2]
[340887765,1730021810058,158.67635362,0.000149,2]
[340887766,1730021935236,980.87,0.000149,2]
[340887767,1730021993791,-680.21891126,0.000149,2]
[340887768,1730021993812,-500.0,0.00014973,2]
[340887769,1730021993834,-645.91,0.0001498,3]
[340887770,1730021993855,-150.0,0.00014989,2]
[340887771,1730021993877,-163.96575925,0.0001499,2]
[340887772,1730021993900,-211173.18752,0.0001499,3]
[340887773,1730021993925,-211944.525479,0.0001499,3]
[340887774,1730021993948,-364742.19233049,0.00015,2]
[340887775,1730022428301,-902.59,0.00014879,2]
[340887776,1730022428325,-150.0,0.00014899,2]
[340887777,1730022428349,-300.0,0.00014899,2]
[340887778,1730022428372,-3395.11875091,0.000149,2]
[340887779,1730022428396,-171.881724,0.000149,2]
[340887780,1730022428420,-4840.31753958,0.000149,2]
[340887781,1730022428444,-431.46406224,0.000149,2]
[340887782,1730022428468,-166.44128582,0.000149,2]
[340887783,1730022428492,-2714.9644137,0.000149,2]
[340887784,1730022428516,-11697.10724921,0.000149,2]
[340887785,1730022428538,-223.42164802,0.000149,2]
[340887786,1730022428561,-249.88523154,0.000149,2]
[340887787,1730022428584,-159.74861566,0.00014973,2]
[340887788,1730022428606,-503.27156396,0.00014973,2]
[340887789,1730022428628,-500.77958896,0.00014973,2]
[340887790,1730022428651,-299.99,0.00014973,2]
[340887791,1730022428674,-500.0,0.00014973,2]
[340887792,1730022428696,-500.0,0.00014973,2]
[340887793,1730022428722,-169.60500023,0.0001499,2]
[340887794,1730022428749,-28789.4194615,0.0001499,3]
[340887795,1730022428775,-30908.99386467,0.0001499,3]
[340887796,1730022502055,500.0,0.00044065,30]
[340887797,1730022586353,500.0,0.00044065,30]
[340887798,1730022586612,500.0,0.00044065,30]
[340887799,1730022586878,500.0,0.00044065,30]
[340887800,1730022587136,287.94168155,0.00044065,30]
[340887807,1730022631432,-500.0,0.000146,5]
[340887808,1730022631442,-1000.0,0.000147,5]
[340887809,1730022631453,-761.75,0.000148,5]
[340887810,1730022631465,-571.51368121,0.000148,5]
[340887811,1730022631490,-266.73631879,0.000148,5]
[340887812,1730022631501,-1016.66353484,0.000149,5]
[340887813,1730022631662,-1083.33646516,0.000149,5]
[340887814,1730022631671,-223.421648,0.000149,2]
[340887815,1730022631682,-379.38965609,0.000149,2]
[340887816,1730022631691,-1809.9762758,0.000149,2]
[340887817,1730022631701,-9999.99,0.0001499,2]
[340887818,1730022631711,-357.82,0.0001499,2]
[340887819,1730022631720,-194063.706179,0.0001499,3]
[340887820,1730022631729,-13869.53021789,0.0001499,3]
[340887821,1730022631739,-1139.63072494,0.0001499,3]
[340887822,1730022631751,-2992.03833986,0.0001499,3]
[340887824,1730022631762,-1971.88412231,0.0001499,3]
[340887833,1730022631866,-2661.4245912,0.0001499,3]
[340887834,1730022631877,-3260.31394988,0.0001499,3]
[340887837,1730022637564,-3.7901874,0.0001499,3]
[340887838,1730022637825,-49.529179,0.0001499,3]
[340887895,1730022639540,-552.17048059,0.0001499,3]
[340887896,1730022639599,-1000.0,0.0001499,3]
[340887897,1730022639610,-6117.09898928,0.0001499,3]
[340887946,1730022645481,-329.21982663,0.0001499,3]
[340887948,1730022645491,-262.639,0.0001499,3]
[340887950,1730022645540,-381.20905081,0.0001499,3]
[340887961,1730022645652,-326.19802623,0.0001499,3]
[340888085,1730022692181,1000.0,0.00044065,30]
[340888086,1730022693097,1000.0,0.00044065,30]
[340888087,1730022693796,1000.0,0.00044065,30]
[340888088,1730022694506,1000.0,0.00044065,30]
[340888089,1730022694766,1000.0,0.00044065,30]
[340888090,1730022695132,1000.0,0.00044065,30]
[340888091,1730022695480,1000.0,0.00044065,30]
[340888092,1730022695838,1000.0,0.00044065,30]
[340888093,1730022696205,1000.0,0.00044065,30]
[340888094,1730022696573,1000.0,0.00044065,30]
[340888095,1730022696955,1000.0,0.00044065,30]
[340888096,1730022709526,514.55,0.00044065,30]
[340888097,1730022840494,260.92320676,0.00044065,30]
[340888098,1730023133079,500.0,0.00044065,30]
[340888099,1730023272324,500.0,0.00044062,30]
[340888100,1730023272653,500.0,0.00044062,30]
[340888101,1730023272936,500.0,0.00044062,30]
[340888102,1730023273660,500.0,0.00044062,30]
[340888103,1730023273944,500.0,0.00044062,30]
[340888104,1730023274263,500.0,0.00044062,30]
[340888105,1730023274592,500.0,0.00044062,30]
[340888106,1730023274922,533.3236034,0.00044062,30]
[340888107,1730023718170,500.0,0.00044062,30]
[340888108,1730023718421,500.0,0.00044062,30]
[340888109,1730023718678,500.0,0.00044062,30]
[340888110,1730023718937,500.0,0.00044062,30]
[340888111,1730023719193,500.0,0.00044062,30]
[340888112,1730023719518,500.0,0.00044062,30]
[340888113,1730023719837,500.0,0.00044062,30]
[340888114,1730023719863,500.0,0.00044062,30]
[340888115,1730023720154,500.0,0.00044062,30]
[340888116,1730023720455,500.0,0.00044062,30]
[340888117,1730023720524,500.0,0.00044062,30]
[340888118,1730023720754,500.0,0.00044062,30]
[340888119,1730023720810,500.0,0.00044062,30]
[340888120,1730023721012,500.0,0.00044062,30]
[340888121,1730023721112,190.79225087,0.00044062,30]
[340888122,1730023721339,500.0,0.00044062,30]
[340888123,1730023721600,500.0,0.00044062,30]
[340888124,1730023721856,500.0,0.00044062,30]
[340888125,1730023722171,348.09396628,0.00044062,30]
[340888126,1730023730130,500.0,0.00044062,30]
[340888127,1730023730381,500.0,0.00044062,30]
[340888128,1730023730682,500.0,0.00044062,30]
[340888129,1730023730949,500.0,0.00044062,30]
[340888130,1730023742254,500.0,0.00044062,30]
[340888131,1730023742570,500.0,0.00044062,30]
[340888132,1730023742835,500.0,0.00044062,30]
[340888133,1730023758291,500.0,0.00044062,30]
[340888134,1730023758731,500.0,0.00044062,30]
[340888135,1730023758917,1079.64,0.00044062,30]
[340888136,1730023759243,1079.64,0.00044062,30]
[340888137,1730023759524,1079.64,0.00044062,30]
[340888138,1730023759784,1079.64,0.00044062,30]
[340888139,1730023760094,1079.64,0.00044062,30]
[340888140,1730023760657,1079.64,0.00044062,30]
[340888141,1730023760988,1079.64,0.00044062,30]
[340888142,1730023761244,1079.64,0.00044062,30]
[340888143,1730023761576,1079.64,0.00044062,30]
[340888144,1730023761889,1079.64,0.00044062,30]
[340888145,1730023762162,1079.64,0.00044062,30]
[340888146,1730023762448,1079.64,0.00044062,30]
[340888147,1730023762759,1079.64,0.00044062,30]
[340888148,1730023763013,1079.64,0.00044062,30]
[340888149,1730023763313,1079.64,0.00044062,30]
[340888150,1730023763662,1079.64,0.00044062,30]
[340888151,1730023763979,1079.64,0.00044062,30]
[340888152,1730023764294,1079.64,0.00044062,30]
[340888153,1730023764554,1079.64,0.00044062,30]
[340888154,1730023764825,1079.64,0.00044062,30]
[340888155,1730023765097,1079.64,0.00044062,30]
[340888156,1730023765372,1079.64,0.00044062,30]
[340888157,1730023765742,1079.64,0.00044062,30]
[340888159,1730023766049,1079.76,0.00044062,30]
[340888160,1730023768548,500.0,0.00044062,30]
[340888161,1730023768818,500.0,0.00044062,30]
[340888162,1730023769075,500.0,0.00044062,30]
[340888163,1730023769336,500.0,0.00044062,30]
[340888164,1730023769658,500.0,0.00044062,30]
[340888165,1730023769962,500.0,0.00044062,30]
[340888166,1730023770223,500.0,0.00044062,30]
[340888167,1730023770541,500.0,0.00044062,30]
[340888168,1730023770800,500.0,0.00044062,30]
[340888169,1730023771104,500.0,0.00044062,30]
[340888170,1730023771361,500.0,0.00044062,30]
[340888171,1730023771630,500.0,0.00044062,30]
[340888172,1730023771878,500.0,0.00044062,30]
[340888173,1730023772150,500.0,0.00044062,30]
[340888174,1730023772449,500.0,0.00044062,30]
[340888175,1730023772701,500.0,0.00044062,30]
[340888176,1730023773028,500.0,0.00044062,30]
[340888177,1730023773369,500.0,0.00044062,30]
[340888178,1730023773654,500.0,0.00044062,30]
[340888179,1730023773915,500.0,0.00044062,30]
[340888180,1730023774173,500.0,0.00044062,30]
[340888181,1730023774482,256.98,0.00044062,30]
[340888182,1730023798054,500.0,0.00044062,30]
[340888183,1730023798314,500.0,0.00044062,30]
[340888184,1730023798568,500.0,0.00044062,30]
[340888185,1730023798814,500.0,0.00044062,30]
[340888186,1730023799118,500.0,0.00044062,30]
[340888187,1730023799446,500.0,0.00044062,30]
[340888188,1730023799732,500.0,0.00044062,30]
[340888189,1730023800104,258.12,0.00044062,30]
[340888197,1730023831690,-200.0,0.000146,5]
[340888198,1730023831700,-682.748,0.000147,2]
[340888199,1730023831709,-166.663,0.000147,2]
[340888200,1730023831718,-500.0,0.000147,5]
[340888201,1730023831727,-150.0,0.00014733,2]
[340888202,1730023831737,-800.0,0.000148,5]
[340888203,1730023831745,-238.78006016,0.00014899,2]
[340888204,1730023831756,-61.21993984,0.00014899,2]
[340888205,1730023831766,-171.88172399,0.000149,2]
[340888206,1730023831775,-76.9074753,0.000149,2]
[340888207,1730023831786,-3355.8886218,0.000149,2]
[340888208,1730023831798,-923.48968854,0.000149,2]
[340888209,1730023831807,-1054.34457799,0.000149,5]
[340888210,1730023831819,-45.65542201,0.000149,5]
[340888211,1730023831828,-788.14251115,0.000149,2]
[340888212,1730023831839,-313.56832316,0.000149,2]
[340888213,1730023831918,-104.94001623,0.000149,2]
[340888214,1730023831927,-252.9264374,0.000149,2]
[340888215,1730023831937,-223.421648,0.000149,2]
[340888216,1730023831946,-150.0,0.00014989,2]
[340888217,1730023831956,-104.12281355,0.0001499,3]
[340888218,1730023831967,-5489.16927506,0.0001499,3]
[340888235,1730023837651,-464.016,0.0001499,3]
[340888261,1730023838468,500.0,0.00044062,30]
[340888266,1730023838751,500.0,0.00044062,30]
[340888267,1730023839032,500.0,0.00044062,30]
[340888268,1730023839313,416.58133762,0.00044062,30]
[340888272,1730023839977,-2512.6035596,0.0001499,3]
[340888273,1730023840036,-52393.07795339,0.0001499,3]
[340888274,1730023840046,-9999.99,0.0001499,2]
[340888275,1730023840055,-25003.35,0.0001499,2]
[340888276,1730023840066,-618.31,0.0001499,2]
[340888277,1730023840075,-12235.67,0.0001499,2]
[340888278,1730023840084,-500.0,0.00014999,2]
[340888279,1730023840093,-430.23678454,0.00014999,2]
[340888281,1730023840103,-500.0,0.00014999,2]
[340888282,1730023840112,-500.0,0.00014999,2]
[340888284,1730023840122,-500.0,0.00014999,2]
[340888286,1730023840132,-249.56177586,0.00014999,2]
[340888287,1730023840141,-500.0,0.00014999,2]
[340888288,1730023840150,-190.94262735,0.00014999,2]
[340888289,1730023840159,-218.53295197,0.00014999,2]
[340888290,1730023840168,-473.2,0.00014999,2]
[340888291,1730023840177,-3566.15,0.00014999,2]
[340888292,1730023840186,-150.99,0.00014999,2]
[340888293,1730023840195,-177331.63670689,0.00015,2]
[340888294,1730023842284,150.0,0.000142,2]
[340888295,1730023843637,-354.70388269,0.00015,2]
[340888300,1730023845997,-0.0047122,0.00015,2]
[340888304,1730023866406,500.0,0.00044062,30]
[340888305,1730023866719,267.40251445,0.00044062,30]
[340888306,1730023879851,500.0,0.00044062,30]
[340888307,1730023880161,500.0,0.00044062,30]
[340888308,1730023880797,500.0,0.00044062,30]
[340888309,1730023881102,648.9079271,0.00044062,30]
[340888310,1730023882226,500.0,0.00044062,30]
[340888311,1730023882561,500.0,0.00044062,30]
[340888312,1730023882840,500.0,0.00044062,30]
[340888313,1730023883169,500.0,0.00044062,30]
[340888314,1730023883476,500.0,0.00044062,30]
[340888315,1730023884182,500.0,0.00044062,30]
[340888316,1730023884463,500.0,0.00044062,30]
[340888317,1730023884798,500.0,0.00044062,30]
[340888318,1730023885052,500.0,0.00044062,30]
[340888319,1730023885297,500.0,0.00044062,30]
[340888320,1730023885672,500.0,0.00044062,30]
[340888321,1730023885944,500.0,0.00044062,30]
[340888322,1730023886223,500.0,0.00044062,30]
[340888323,1730023886589,500.0,0.00044062,30]
[340888324,1730023887009,500.0,0.00044062,30]
[340888325,1730023887191,500.0,0.00044062,30]
[340888326,1730023887536,500.0,0.00044062,30]
[340888327,1730023887939,500.0,0.00044062,30]
[340888328,1730023888264,500.0,0.00044062,30]
[340888329,1730023888525,500.0,0.00044062,30]
[340888330,1730023888836,500.0,0.00044062,30]
[340888331,1730023889149,500.0,0.00044062,30]
[340888332,1730023889750,541.8144,0.00044062,30]
[340888333,1730023913290,3039.24,0.00044062,30]
[340888334,1730023913561,3039.24,0.00044062,30]
[340888335,1730023913852,3039.24,0.00044062,30]
[340888336,1730023914257,3039.24,0.00044062,30]
[340888337,1730023914578,3039.24,0.00044062,30]
[340888338,1730023914913,3039.24,0.00044062,30]
[340888339,1730023915265,3039.24,0.00044062,30]
[340888340,1730023915514,3039.24,0.00044062,30]
[340888341,1730023915838,3039.24,0.00044062,30]
[340888342,1730023916080,3039.24,0.00044062,30]
[340888343,1730023916349,3039.24,0.00044062,30]
[340888344,1730023917638,3039.24,0.00044062,30]
[340888345,1730023917919,3039.24,0.00044062,30]
[340888346,1730023918228,3039.24,0.00044062,30]
[340888347,1730023918692,3039.24,0.00044062,30]
[340888348,1730023918946,3039.24,0.00044062,30]
[340888349,1730023919196,3039.24,0.00044062,30]
[340888350,1730023919496,3039.24,0.00044062,30]
[340888351,1730023919544,507.63,0.00044062,30]
[340888352,1730023919754,3039.24,0.00044062,30]
[340888353,1730023919804,507.63,0.00044062,30]
[340888354,1730023920120,507.63,0.00044062,30]
[340888355,1730023920160,3039.24,0.00044062,30]
[340888356,1730023920496,3039.24,0.00044062,30]
[340888357,1730023920763,3039.24,0.00044062,30]
[340888358,1730023920868,507.63,0.00044062,30]
[340888359,1730023921037,3039.24,0.00044062,30]
[340888360,1730023921130,507.63,0.00044062,30]
[340888361,1730023921372,3039.44670632,0.00044062,30]
[340888362,1730023921411,507.63,0.00044062,30]
[340888363,1730023921734,507.63,0.00044062,30]
[340888364,1730023922316,507.63,0.00044062,30]
[340888365,1730023922773,507.63,0.00044062,30]
[340888366,1730023922953,507.63,0.00044062,30]
[340888367,1730023923278,507.63,0.00044062,30]
[340888368,1730023923650,507.63,0.00044062,30]
[340888369,1730023924120,507.63,0.00044062,30]
[340888370,1730023924431,507.63,0.00044062,30]
[340888371,1730023924704,507.63,0.00044062,30]
[340888372,1730023925152,507.63,0.00044062,30]
[340888373,1730023925420,507.63,0.00044062,30]
[340888374,1730023925679,507.63,0.00044062,30]
[340888375,1730023926024,507.63,0.00044062,30]
[340888376,1730023926294,507.63,0.00044062,30]
[340888377,1730023926585,507.63,0.00044062,30]
[340888378,1730023927247,507.63,0.00044062,30]
[340888379,1730023927787,507.63,0.00044062,30]
[340888380,1730023928041,507.77676499,0.00044062,30]
[340888381,1730023956318,500.0,0.00044062,30]
[340888382,1730023956722,500.0,0.00044062,30]
[340888383,1730024103164,2106.70397541,0.00015002,15]
[340888384,1730024209460,186.16,0.00024884,120]
[340888385,1730024226931,500.0,0.00044079,30]
[340888386,1730024227213,500.0,0.00044079,30]
[340888387,1730024227584,500.0,0.00044079,30]
[340888388,1730024227768,500.0,0.00044079,30]
[340888389,1730024228061,500.0,0.00044079,30]
[340888390,1730024228319,500.0,0.00044079,30]
[340888391,1730024228595,500.0,0.00044079,30]
[340888392,1730024229006,500.0,0.00044079,30]
[340888393,1730024229180,500.0,0.00044079,30]
[340888394,1730024229440,500.0,0.00044079,30]
[340888395,1730024229708,500.0,0.00044079,30]
[340888396,1730024229977,500.0,0.00044079,30]
[340888397,1730024230393,500.0,0.00044079,30]
[340888398,1730024230653,500.0,0.00044079,30]
[340888399,1730024230909,500.0,0.00044079,30]
[340888400,1730024231168,500.0,0.00044079,30]
[340888401,1730024231433,500.0,0.00044079,30]
[340888402,1730024231689,286.22613916,0.00044079,30]
[340888403,1730024240956,500.0,0.00044079,30]
[340888404,1730024241237,500.0,0.00044079,30]
[340888405,1730024241675,500.0,0.00044079,30]
[340888406,1730024241974,500.0,0.00044079,30]
[340888407,1730024242309,500.0,0.00044079,30]
[340888408,1730024242559,500.0,0.00044079,30]
[340888409,1730024242862,500.0,0.00044079,30]
[340888410,1730024243120,500.0,0.00044079,30]
[340888411,1730024243393,500.0,0.00044079,30]
[340888412,1730024243657,500.0,0.00044075,30]
[340888413,1730024243914,500.0,0.00044075,30]
[340888414,1730024244216,500.0,0.00044075,30]
[340888415,1730024244484,500.0,0.00044075,30]
[340888416,1730024244744,500.0,0.00044075,30]
[340888417,1730024245037,500.0,0.00044075,30]
[340888418,1730024245354,500.0,0.00044075,30]
[340888419,1730024245622,549.29730204,0.00044075,30]
[340888420,1730024309994,500.0,0.00044075,30]
[340888421,1730024310298,500.0,0.00044075,30]
[340888422,1730024310567,500.0,0.00044075,30]
[340888423,1730024310816,500.0,0.00044075,30]
[340888424,1730024311119,500.0,0.00044075,30]
[340888425,1730024311319,500.0,0.00044075,30]
[340888426,1730024311558,500.0,0.00044075,30]
[340888427,1730024311822,500.0,0.00044075,30]
[340888428,1730024312140,229.14338424,0.00044075,30]
[340888429,1730024537025,1013.73158662,0.00044075,30]
[340888433,1730024875969,2850.0,0.00012579,2]
[340888434,1730024877240,2281.64591675,0.00013,15]
[340888435,1730024878513,150.0,0.00015,15]
[340888436,1730024890649,1139.63072494,0.00013,4]